bitfinex/quotes_ETHUSD_20250326
["timestamp","ask_amount","ask_price","bid_price","bid_amount"]
[1742957102098,45.499616,2061.3,2061.2,0.7684858]
[1742957102325,45.49268,2061.3,2061.2,0.7684858]
[1742957102635,45.49268,2061.3,2061.2,0.0164858]
[1742957102989,46.04268,2061.3,2061.2,0.0164858]
[1742957105103,45.617391,2061.3,2061.2,0.0164858]
[1742957105825,0.7579,2061.1,2060.5,0.752]
[1742957106032,2.32593089,2060.6,2060.5,0.752]
[1742957106198,9.92393089,2060.6,2060.5,0.752]
[1742957106417,14.44224489,2060.6,2060.5,0.752]
[1742957108041,14.81126229,2060.6,2060.5,0.752]
[1742957110710,10.29294829,2060.6,2060.5,0.752]
[1742957110949,22.93698429,2060.6,2060.5,0.752]
[1742957111248,19.42299229,2060.6,2060.5,0.752]
[1742957113922,18.33888929,2060.6,2060.5,0.752]
[1742957114348,18.00004229,2060.6,2060.5,0.752]
[1742957115616,17.05985629,2060.6,2060.5,0.752]
[1742957115862,14.30234829,2060.6,2060.5,0.752]
[1742957116545,3.0,2060.5,2060.2,0.7597]
[1742957118038,2.32593089,2060.4,2060.2,0.7597]
[1742957118628,9.871847,2060.3,2060.2,0.7597]
[1742957118832,6.70934,2060.3,2060.2,0.7597]
[1742957119158,7.47024,2060.3,2060.1,0.02]
[1742957119457,15.86148889,2060.2,2060.1,0.02]
[1742957119656,13.37098689,2060.2,2060.1,0.02]
[1742957120355,14.81101506,2060.2,2060.1,0.02]
[1742957120741,15.36101506,2060.2,2060.1,0.02]
[1742957121459,16.12191506,2060.2,2060.1,0.02]
[1742957128858,15.36201506,2060.2,2060.1,0.02]
[1742957129273,9.92593089,2060.2,2060.1,0.02]
[1742957129479,22.24205689,2060.2,2060.1,0.02]
[1742957129774,26.80007689,2060.2,2060.1,0.02]
[1742957131780,28.16157689,2060.2,2060.1,0.02]
[1742957132879,57.12503941,2060.2,2060.1,0.02]
[1742957133173,59.78377366,2060.2,2060.1,0.02]
[1742957133743,64.63766366,2060.2,2060.1,0.02]
[1742957134174,66.96359455,2060.2,2060.1,0.02]
[1742957134377,72.08259455,2060.2,2060.1,0.02]
[1742957134569,69.75666366,2060.2,2060.1,0.02]
[1742957136085,64.90277366,2060.2,2060.1,0.02]
[1742957137186,59.78377366,2060.2,2060.1,0.02]
[1742957137388,52.76353941,2060.2,2060.1,0.02]
[1742957137760,56.31353941,2060.2,2060.1,0.02]
[1742957142394,39.43939341,2060.2,2060.1,0.02]
[1742957142785,89.93939341,2060.2,2060.1,0.02]
[1742957143592,80.87304541,2060.2,2060.1,0.02]
[1742957143798,69.75444741,2060.2,2060.1,0.02]
[1742957146995,64.60444741,2060.2,2060.1,0.02]
[1742957147195,33.31245052,2060.2,2060.1,0.8393]
[1742957147412,33.56346252,2060.2,2060.1,0.8393]
[1742957147614,36.56346252,2060.2,2060.1,0.8393]
[1742957147906,39.21170352,2060.2,2060.1,0.8393]
[1742957148326,8.54946252,2060.2,2060.1,0.8393]
[1742957148726,10.74976452,2060.2,2060.1,0.8393]
[1742957148930,12.12623289,2060.2,2060.1,0.8393]
[1742957149089,3.0,2060.2,2060.1,0.8393]
[1742957149290,30.34293089,2060.5,2060.1,0.8393]
[1742957149599,4.6,2060.2,2060.1,0.8393]
[1742957152232,4.6,2060.2,2060.1,1.408673]
[1742957154437,4.6,2060.2,2060.1,0.8393]
[1742957167174,4.55,2060.2,2060.1,0.8393]
[1742957168553,7.55,2060.2,2060.1,0.8393]
[1742957168958,3.0,2060.2,2060.1,0.8393]
[1742957169439,3.0,2060.2,2060.1,5.69343]
[1742957169636,28.011,2060.7,2060.3,4.85365]
[1742957169838,7.599,2060.6,2060.3,0.803]
[1742957170240,2.32593089,2060.5,2060.3,0.803]
[1742957171539,7.96857398,2060.6,2060.3,0.803]
[1742957171540,3.0,2060.6,2060.3,0.803]
[1742957171763,4.599,2060.6,2060.3,0.803]
[1742957171958,4.599,2060.6,2060.4,0.56568]
[1742957172566,7.599,2060.6,2060.4,0.56568]
[1742957173181,7.599,2060.6,2060.3,0.803]
[1742957175175,0.7853,2060.4,2060.1,0.02]
[1742957175360,2.32593089,2060.2,2060.1,0.02]
[1742957177174,6.28394251,2060.2,2060.1,0.02]
[1742957178888,3.95801162,2060.2,2060.1,0.02]
[1742957181184,3.0,2060.2,2060.1,0.823]
[1742957184591,3.0,2060.2,2060.1,1.390746]
[1742957185001,3.0,2060.2,2060.1,0.02]
[1742957185302,5.32593089,2060.2,2060.1,0.02]
[1742957186282,3.0,2060.2,2060.1,0.02]
[1742957190200,6.14843089,2060.2,2060.1,0.02]
[1742957190875,19.31510289,2060.2,2060.1,0.02]
[1742957191072,18.73360618,2060.2,2060.1,0.02]
[1742957191474,14.26542018,2060.2,2060.1,0.02]
[1742957191669,10.74843089,2060.2,2060.1,0.02]
[1742957191875,0.8225,2060.0,2059.3,0.807]
[1742957192072,5.32593089,2059.5,2059.2,0.1213898]
[1742957192387,4.61,2059.4,2059.2,0.1213898]
[1742957194181,5.57796155,2059.4,2059.2,0.1213898]
[1742957200019,2.32593089,2060.0,2059.2,0.1213898]
[1742957200020,4.603,2059.3,2059.2,0.9159898]
[1742957200361,4.608,2059.9,2059.6,5.64987]
[1742957200479,4.609,2060.0,2059.7,5.69811636]
[1742957200839,3.0,2059.9,2059.7,0.7946]
[1742957201378,3.0,2059.9,2059.7,1.359604]
[1742957203134,3.0,2059.9,2059.7,6.214534]
[1742957203613,3.0,2059.9,2059.7,1.359604]
[1742957205129,3.0,2059.9,2059.7,6.214674]
[1742957205286,3.0,2060.2,2059.7,6.214674]
[1742957205495,3.0,2060.0,2059.8,1.1069844]
[1742957206041,3.0,2060.4,2059.9,0.7946]
[1742957206344,4.603,2060.3,2060.0,0.7946]
[1742957208903,30.34093089,2060.5,2060.0,0.7946]
[1742957209103,7.602,2060.4,2060.1,0.7946]
[1742957209302,7.602,2060.4,2060.2,0.564896]
[1742957209505,7.602,2060.4,2060.1,0.7946]
[1742957213130,2.32593089,2060.3,2059.9,0.7946]
[1742957216213,2.32593089,2060.3,2059.9,5.64915]
[1742957216614,2.32593089,2060.3,2059.9,5.64908]
[1742957216956,7.602,2060.4,2059.9,5.64908]
[1742957217127,7.602,2060.4,2060.0,1.16109044]
[1742957217755,7.602,2060.4,2060.1,0.7835]
[1742957218419,5.32593089,2060.5,2060.1,0.7835]
[1742957218627,28.8364,2060.9,2060.2,4.85379]
[1742957218837,28.8364,2060.9,2060.3,0.7835]
[1742957218838,7.599,2060.8,2060.3,0.7835]
[1742957219961,31.16233089,2060.9,2060.3,1.832621]
[1742957220110,7.599,2060.8,2060.4,0.7835]
[1742957220314,9.92493089,2060.8,2060.4,0.7835]
[1742957220730,2.32593089,2060.6,2060.4,0.7835]
[1742957220927,2.32593089,2060.6,2060.1,0.7835]
[1742957220928,3.0,2060.5,2060.1,0.7835]
[1742957221128,2.32593089,2060.4,2059.9,0.7835]
[1742957221331,5.32593089,2060.2,2059.9,1.347332]
[1742957223479,5.32593089,2060.2,2059.7,0.7835]
[1742957223646,6.15133089,2060.2,2059.7,0.7835]
[1742957224055,2.32593089,2060.0,2059.7,0.7835]
[1742957224992,6.15133089,2060.2,2059.7,0.7835]
[1742957225273,6.15133089,2060.2,2059.7,5.63845]
[1742957225478,6.15133089,2060.2,2059.7,6.687824]
[1742957226177,4.616,2060.1,2059.8,0.7835]
[1742957226481,0.35966097,2060.6,2059.8,0.7835]
[1742957226482,4.617,2060.5,2060.1,0.7835]
[1742957226641,3.0,2060.4,2060.1,0.7835]
[1742957226841,3.0,2060.4,2060.1,6.686819]
[1742957227663,3.15133089,2060.3,2059.8,20.13825]
[1742957227868,3.15133089,2060.3,2059.8,0.7835]
[1742957228577,2.32593089,2060.3,2059.8,5.63821]
[1742957229082,0.7568,2060.2,2059.4,0.7517]
[1742957229246,2.32593089,2060.1,2059.6,4.85528]
[1742957229575,3.0,2059.9,2059.6,4.85528]
[1742957230088,3.0,2059.9,2059.7,0.7517]
[1742957230487,3.0,2059.9,2059.7,5.60669]
[1742957230693,3.0,2059.9,2059.7,0.7517]
[1742957231197,5.32593089,2059.9,2059.3,4.85586]
[1742957231480,5.32593089,2059.9,2059.3,0.7517]
[1742957231481,0.7568,2059.8,2059.3,0.7517]
[1742957231660,5.32593089,2059.7,2059.2,0.1213898]
[1742957232357,5.93420398,2059.7,2059.2,0.1213898]
[1742957234962,6.08273089,2059.3,2059.2,0.1213898]
[1742957235152,10.74873089,2059.3,2059.2,0.1213898]
[1742957235957,10.74973089,2059.3,2059.2,0.1213898]
[1742957236159,27.51861989,2059.3,2059.2,0.1213898]
[1742957236473,0.7568,2059.0,2058.6,0.62739807]
[1742957236660,6.08273089,2058.7,2058.6,0.62739807]
[1742957236854,36.12014589,2058.7,2058.6,0.62739807]
[1742957237065,38.82542589,2058.7,2058.6,0.62739807]
[1742957237264,38.82542589,2058.7,2058.6,0.14119832]
[1742957237265,33.23368861,2058.7,2058.6,0.14119832]
[1742957237488,34.1698557,2058.7,2058.6,0.14119832]
[1742957237661,39.0272857,2058.7,2058.6,0.14119832]
[1742957238026,34.1698557,2058.7,2058.6,0.14119832]
[1742957238373,35.12365439,2058.7,2058.6,0.14119832]
[1742957239013,11.92826662,2058.7,2058.6,0.14119832]
[1742957239229,9.11139862,2058.7,2058.6,0.14119832]
[1742957239426,12.11139862,2058.7,2058.6,0.14119832]
[1742957239722,8.15759993,2058.7,2058.6,0.14119832]
[1742957239927,7.79073089,2058.7,2058.6,0.14119832]
[1742957240083,7.03393089,2058.7,2058.6,0.14119832]
[1742957240280,10.03393089,2058.7,2058.6,0.14119832]
[1742957240586,4.712,2058.7,2058.6,0.14119832]
[1742957240794,7.03793089,2058.7,2058.6,0.14119832]
[1742957241011,10.03793089,2058.7,2058.6,0.14119832]
[1742957241383,28.016,2058.9,2058.6,4.99877832]
[1742957241587,28.016,2058.9,2058.8,4.85719]
[1742957241786,0.814,2059.5,2058.7,6.16940783]
[1742957241787,30.34793089,2059.7,2059.1,4.85644]
[1742957241984,4.726,2059.6,2059.2,0.8123]
[1742957242200,3.0,2059.5,2059.2,5.66855]
[1742957242518,4.726,2059.6,2059.2,0.8123]
[1742957242714,4.726,2059.6,2059.2,1.379168]
[1742957242916,3.0,2059.5,2059.2,1.379168]
[1742957243123,2.32593089,2059.5,2059.0,4.85671]
[1742957243631,5.32593089,2059.5,2059.0,4.85671]
[1742957243833,2.32593089,2059.1,2058.7,0.49987783]
[1742957244125,2.32593089,2059.1,2058.6,0.14119832]
[1742957244126,2.32593089,2058.8,2058.6,0.14119832]
[1742957244698,3.0,2058.7,2058.6,0.14119832]
[1742957244903,5.47947045,2058.7,2058.6,0.14119832]
[1742957245939,3.36710071,2058.7,2058.6,0.14119832]
[1742957246921,3.0,2058.7,2058.6,0.14119832]
[1742957247231,7.787,2058.7,2058.6,0.14119832]
[1742957250809,10.26647045,2058.7,2058.6,0.14119832]
[1742957251121,31.61264445,2058.7,2058.6,0.14119832]
[1742957251518,27.36404045,2058.7,2058.6,0.14119832]
[1742957251691,13.70437545,2058.7,2058.6,0.14119832]
[1742957252035,11.224905,2058.7,2058.6,0.14119832]
[1742957253793,8.5941,2058.7,2058.6,0.14119832]
[1742957254230,8.5951,2058.7,2058.6,0.14119832]
[1742957254846,7.788,2058.7,2058.6,0.14119832]
[1742957257357,7.787,2058.7,2058.6,0.14119832]
[1742957257514,7.786,2058.7,2058.6,0.14119832]
[1742957259133,18.680085,2058.7,2058.6,0.14119832]
[1742957259309,17.784975,2058.7,2058.6,0.14119832]
[1742957259828,8.59,2058.7,2058.6,0.14119832]
[1742957260344,7.786,2058.7,2058.6,0.14119832]
[1742957260566,3.0,2058.7,2058.6,0.14119832]
[1742957260748,7.784,2058.7,2058.6,0.14119832]
[1742957261241,28.026,2058.8,2058.6,0.14119832]
[1742957261413,32.809,2058.8,2058.6,0.94249832]
[1742957261618,28.026,2058.8,2058.6,6.38013715]
[1742957262024,28.026,2058.8,2058.6,1.52251715]
[1742957262856,28.026,2058.8,2058.6,6.38006715]
[1742957263560,0.99314868,2059.3,2058.7,1.12378172]
[1742957263762,4.781,2059.2,2058.7,5.98108172]
[1742957264253,3.0,2059.1,2058.7,5.98108172]
[1742957264479,4.779,2059.1,2058.8,4.85719]
[1742957265282,4.779,2059.1,2058.7,5.98108172]
[1742957265590,4.779,2059.1,2058.8,0.692358]
[1742957266180,4.779,2059.1,2058.8,5.549548]
[1742957267261,4.779,2059.1,2058.8,0.692358]
[1742957267469,4.779,2059.1,2058.8,5.549538]
[1742957267982,29.78422805,2060.0,2059.4,0.8013]
[1742957268185,4.787,2059.9,2059.4,5.65698]
[1742957268364,4.788,2059.8,2059.4,5.65698]
[1742957268882,4.788,2059.8,2059.4,5.65694]
[1742957269040,4.788,2059.8,2059.5,4.85545]
[1742957269241,3.0,2059.7,2059.5,4.85545]
[1742957269456,4.788,2059.9,2059.5,10.762049]
[1742957269680,4.788,2059.9,2059.6,4.85528]
[1742957270188,3.0,2059.8,2059.2,4.85613]
[1742957270576,3.0,2059.8,2059.2,9.71217]
[1742957270779,3.0,2059.8,2059.3,1.049627]
[1742957271693,3.8066,2059.8,2059.3,1.049627]
[1742957272582,3.8066,2059.8,2059.3,5.905417]
[1742957273157,3.8066,2059.8,2059.5,5.63963]
[1742957273158,3.0,2059.8,2059.5,5.63963]
[1742957273354,3.0,2059.8,2059.6,4.85527]
[1742957273581,3.0,2059.8,2059.6,5.90476]
[1742957274354,3.0,2059.8,2059.6,5.90469]
[1742957274577,3.0,2059.8,2059.7,4.85507]
[1742957274785,28.028,2060.0,2059.6,10.75996]
[1742957275097,3.0,2059.9,2059.6,1.04949]
[1742957275303,3.0,2059.9,2059.5,0.7841]
[1742957275661,3.0,2059.9,2059.5,5.63963]
[1742957276383,3.0,2059.9,2059.6,4.85529]
[1742957276596,3.0,2059.9,2059.5,5.63954]
[1742957278863,3.0,2059.9,2059.6,4.85515]
[1742957279064,3.0,2059.9,2059.7,1.049464]
[1742957279400,3.0,2059.9,2059.7,5.904534]
[1742957279801,3.0,2059.9,2059.7,1.049464]
[1742957279983,3.0,2059.9,2059.7,5.904504]
[1742957280308,3.0,2059.9,2059.7,1.049464]
[1742957280808,3.0,2059.9,2059.5,0.7841]
[1742957281020,3.7965,2059.9,2059.3,6.703547]
[1742957281870,3.7965,2059.9,2059.4,4.85566]
[1742957282712,3.7965,2059.9,2059.3,6.703547]
[1742957282918,3.7965,2059.9,2059.3,0.7981]
[1742957283408,3.7965,2059.9,2059.3,10.50974]
[1742957283706,3.7965,2059.9,2059.4,4.85577]
[1742957285306,3.7965,2059.9,2059.4,4.85559]
[1742957285504,3.0,2059.9,2059.5,9.71083]
[1742957285709,7.783,2059.9,2059.6,4.85522]
[1742957285923,7.783,2059.9,2059.7,5.653]
[1742957286688,7.783,2059.9,2059.7,0.7981]
[1742957286974,8.5795,2059.9,2059.5,15.2981]
[1742957287589,8.5795,2059.9,2059.5,20.15361]
[1742957287780,8.5795,2059.9,2059.5,22.654538]
[1742957288507,8.5795,2059.9,2059.5,22.654378]
[1742957288711,8.5795,2059.9,2059.6,4.85518]
[1742957288712,3.0,2059.9,2059.6,4.85518]
[1742957288887,3.0,2059.9,2059.7,4.85495]
[1742957289090,3.0,2059.9,2059.8,0.971013]
[1742957290391,3.0,2059.9,2059.5,22.654348]
[1742957290590,3.7966,2059.9,2059.5,22.654348]
[1742957291715,3.0,2059.9,2059.6,4.85517]
[1742957292115,0.7966,2060.1,2059.7,4.85484]
[1742957292289,3.0,2059.9,2059.7,4.85503]
[1742957292619,0.7966,2060.3,2059.8,5.340343]
[1742957292920,4.774,2060.2,2059.9,4.8545]
[1742957293131,3.0,2060.1,2059.9,4.8545]
[1742957293327,3.0,2060.1,2059.8,5.340273]
[1742957293525,3.0,2060.1,2059.9,4.85458]
[1742957293699,3.0,2060.1,2060.0,1.0194853]
[1742957295041,0.7966,2060.3,2060.0,5.8738453]
[1742957295250,3.0,2060.2,2060.0,1.0194853]
[1742957295447,3.0,2060.2,2059.8,0.485503]
[1742957295823,0.7966,2060.1,2059.8,0.485503]
[1742957299837,3.0,2060.2,2059.8,5.340293]
[1742957300145,3.0,2060.2,2059.8,10.982653]
[1742957300324,3.0,2060.2,2059.9,4.8546]
[1742957300524,3.0,2060.2,2059.9,7.4028463]
[1742957301144,3.0,2060.2,2059.9,12.2572963]
[1742957301345,3.0,2060.2,2059.9,7.4026963]
[1742957301553,3.0,2060.2,2060.0,4.85431]
[1742957302147,4.761,2060.5,2060.1,0.7877]
[1742957302450,3.0,2060.4,2060.2,0.564205]
[1742957303824,0.7966,2060.3,2060.2,0.564205]
[1742957304031,0.7966,2060.3,2059.9,2.5482463]
[1742957304328,0.7966,2060.3,2059.9,4.8546]
[1742957305351,0.7966,2060.3,2059.8,5.340123]
[1742957305529,0.7966,2060.3,2059.8,10.194803]
[1742957305730,0.7966,2060.3,2059.8,5.340123]
[1742957305930,0.7966,2060.3,2059.8,10.194853]
[1742957306144,0.7966,2060.3,2059.9,1.0982553]
[1742957307353,0.7966,2060.3,2059.9,5.9527653]
[1742957307558,0.7966,2060.3,2059.9,5.9526653]
[1742957307743,0.7966,2060.3,2060.0,4.85436]
[1742957308939,3.0,2060.4,2060.1,4.90257595]
[1742957309134,3.0,2060.4,2060.2,0.4902576]
[1742957309822,3.0,2060.4,2059.9,20.4528453]
[1742957310224,3.0,2060.4,2059.9,5.9528453]
[1742957310467,3.0,2060.4,2059.9,1.0982553]
[1742957310748,3.0,2060.2,2059.8,0.485503]
[1742957310952,3.0,2060.2,2059.5,0.7638]
[1742957311333,3.0,2060.2,2059.6,14.5]
[1742957312356,0.7533,2060.3,2059.6,14.5]
[1742957312927,2.32707631,2060.2,2059.6,14.5]
[1742957313199,2.32707631,2060.2,2059.7,1.52638]
[1742957313621,2.32707631,2060.2,2059.6,4.85522]
[1742957313823,5.32707631,2060.0,2059.5,19.35553]
[1742957314030,10.09007631,2060.0,2059.5,19.35553]
[1742957314259,7.763,2060.0,2059.5,9.7109]
[1742957314456,7.763,2060.0,2059.3,1.12132315]
[1742957314975,7.763,2060.0,2059.4,14.5]
[1742957315129,7.763,2060.0,2059.5,1.56213232]
[1742957317981,7.763,2060.0,2059.3,3.44839946]
[1742957318145,7.763,2060.0,2059.4,14.5]
[1742957318680,7.763,2060.0,2059.5,4.85554]
[1742957319055,7.763,2060.0,2059.6,4.85529]
[1742957322790,7.763,2060.0,2059.8,4.85467]
[1742957322791,3.0,2060.0,2059.8,4.85467]
[1742957323000,3.0,2060.0,2059.9,0.568687]
[1742957323671,3.0,2060.0,2059.4,5.68798]
[1742957324771,3.0,2060.0,2059.5,4.85541]
[1742957325092,3.0,2060.0,2059.6,4.8553]
[1742957325289,3.0,2060.0,2059.5,4.85548]
[1742957327385,3.7707,2059.9,2059.5,4.85548]
[1742957327575,3.7707,2059.9,2059.6,1.054345]
[1742957328462,3.7707,2059.9,2059.6,5.909555]
[1742957329582,3.7707,2059.9,2059.6,1.054345]
[1742957329948,3.7707,2059.9,2059.4,9.71127]
[1742957330347,3.7707,2059.9,2059.3,4.85588]
[1742957330549,2.32707631,2059.8,2059.3,4.85588]
[1742957330745,2.32707631,2059.8,2059.2,5.68827]
[1742957331145,3.7707,2059.7,2059.1,4.85647]
[1742957331349,3.0,2059.5,2059.0,4.85672]
[1742957331796,0.7707,2059.2,2058.7,4.85729]
[1742957332037,7.742,2059.1,2058.6,0.14119832]
[1742957332185,3.09777631,2059.0,2058.6,0.14119832]
[1742957332522,3.0,2058.9,2058.6,0.14119832]
[1742957332823,3.0,2059.1,2058.9,4.85674]
[1742957333115,3.0,2059.1,2058.8,0.8322]
[1742957333116,8.5227,2059.5,2059.1,4.85647]
[1742957333488,8.5227,2059.5,2059.1,4.85629]
[1742957333692,3.7707,2059.5,2059.3,4.85592]
[1742957333891,32.763,2059.6,2059.3,5.827128]
[1742957334206,3.0,2059.5,2059.3,5.827128]
[1742957334387,3.0,2059.5,2059.3,0.971208]
[1742957336326,3.0,2059.5,2059.2,5.61206]
[1742957336818,3.0,2059.5,2059.2,10.46817]
[1742957336999,3.0,2059.5,2059.3,4.85597]
[1742957337512,3.0,2059.5,2059.3,4.946241]
[1742957338327,3.0,2059.5,2059.3,0.090271]
[1742957340533,3.0,2059.5,2059.3,5.4409021]
[1742957341136,3.0,2059.5,2059.3,0.5849121]
[1742957341425,0.8172,2059.4,2059.3,0.090271]
[1742957341631,6.14427631,2059.4,2059.3,0.090271]
[1742957342926,3.8172,2059.4,2059.3,0.090271]
[1742957343633,3.0,2059.4,2059.3,0.090271]
[1742957343789,5.5692,2059.6,2059.3,10.7824151]
[1742957343990,3.0,2059.5,2059.4,4.85578]
[1742957344185,2.32707631,2059.8,2059.5,4.85553]
[1742957344186,5.5622,2059.8,2059.5,4.85553]
[1742957344390,3.0,2059.7,2059.4,4.85575]
[1742957344624,7.88927631,2059.8,2059.3,20.4265551]
[1742957344928,3.0,2059.7,2059.3,15.5705451]
[1742957345228,3.0,2059.7,2059.4,2.11788451]
[1742957345438,3.0,2059.7,2059.3,1.0705451]
[1742957346434,2.32707631,2059.6,2059.3,1.0705451]
[1742957346633,2.32707631,2059.6,2059.3,0.090271]
[1742957346990,3.0,2059.7,2059.3,4.946271]
[1742957347189,3.0,2059.7,2059.3,9.802131]
[1742957347419,3.0,2059.7,2059.3,4.946131]
[1742957347937,3.0,2059.7,2059.4,4.85578]
[1742957348137,0.95548898,2059.7,2059.3,0.090271]
[1742957348431,3.8172,2059.5,2059.3,0.090271]
[1742957348636,0.8172,2059.5,2059.3,0.090271]
[1742957349427,6.25191912,2059.4,2059.3,0.090271]
[1742957349597,6.87711103,2059.4,2059.3,0.090271]
[1742957350197,33.07970003,2059.4,2059.3,0.090271]
[1742957350499,40.61000803,2059.4,2059.3,0.090271]
[1742957350838,57.37711103,2059.4,2059.3,0.090271]
[1742957351395,58.36298679,2059.4,2059.3,0.090271]
[1742957351828,58.91298679,2059.4,2059.3,0.090271]
[1742957352030,63.76876679,2059.4,2059.3,0.090271]
[1742957352621,58.91298679,2059.4,2059.3,0.090271]
[1742957357352,58.91298679,2059.4,2059.3,0.00106452]
[1742957357537,63.76876679,2059.4,2059.3,0.00106452]
[1742957357848,6.25191912,2058.7,2058.6,0.14119832]
[1742957358018,10.98691912,2058.7,2058.6,0.14119832]
[1742957358220,52.24839512,2058.7,2058.6,0.14119832]
[1742957358424,10.98691912,2058.7,2058.6,0.14119832]
[1742957358955,56.42370612,2058.7,2058.6,0.14119832]
[1742957359155,57.44256312,2058.7,2058.6,0.14119832]
[1742957359450,55.19886131,2058.7,2058.6,0.14119832]
[1742957360329,56.52499596,2058.7,2058.6,0.14119832]
[1742957360530,55.57152796,2058.7,2058.6,0.14119832]
[1742957361117,56.12152796,2058.7,2058.6,0.14119832]
[1742957361532,54.08919996,2058.7,2058.6,0.14119832]
[1742957361853,50.09810696,2058.7,2058.6,0.14119832]
[1742957362913,55.50553696,2058.7,2058.6,1e-08]
[1742957363118,19.82783196,2058.7,2058.6,1e-08]
[1742957363454,14.97040196,2058.7,2058.6,1e-08]
[1742957366326,11.97628284,2058.7,2058.6,1e-08]
[1742957366831,2.10193465,2058.7,2058.6,1e-08]
[1742957367051,6.09713465,2058.7,2058.6,1e-08]
[1742957367752,9.09713465,2058.7,2058.6,1e-08]
[1742957367955,6.09713465,2058.7,2058.6,1e-08]
[1742957368268,4.768,2058.7,2058.6,1e-08]
[1742957369317,3.96598983,2058.8,2058.6,1e-08]
[1742957369543,4.765,2058.7,2058.6,1e-08]
[1742957371185,11.32074499,2058.7,2058.6,1e-08]
[1742957375849,12.13784499,2058.7,2058.6,1e-08]
[1742957377362,40.17284499,2058.7,2058.6,1e-08]
[1742957384522,37.84191967,2058.7,2058.6,1e-08]
[1742957385297,35.774,2058.7,2058.6,1e-08]
[1742957386540,28.035,2058.7,2058.6,1e-08]
[1742957386834,32.775,2058.7,2058.6,0.77010001]
[1742957387199,35.775,2058.7,2058.6,0.77010001]
[1742957396579,7.74,2058.7,2058.6,0.77010001]
[1742957397211,7.78845834,2058.7,2058.6,1e-08]
[1742957397380,5.64908334,2058.7,2058.6,1e-08]
[1742957397699,4.74,2058.7,2058.6,1e-08]
[1742957399426,4.715,2058.7,2058.6,0.82020001]
[1742957400086,28.033,2059.1,2058.6,0.82020001]
[1742957400288,4.717,2059.0,2058.6,0.82020001]
[1742957403632,3.0,2058.9,2058.6,0.82020001]
[1742957403785,6.06283717,2058.9,2058.6,0.82020001]
[1742957403982,6.06283717,2058.9,2058.6,1e-08]
[1742957407433,3.06283717,2058.9,2058.6,1e-08]
[1742957408433,6.06283717,2058.9,2058.6,1e-08]
[1742957409098,8.39376249,2058.9,2058.6,1e-08]
[1742957409443,0.62519191,2058.8,2058.6,1e-08]
[1742957409934,3.62519191,2058.8,2058.6,1e-08]
[1742957412743,0.62519191,2058.8,2058.6,1e-08]
[1742957413033,7.698,2058.7,2058.6,0.77450001]
[1742957413239,7.698,2058.7,2058.6,3.10542533]
[1742957417047,7.698,2058.7,2058.6,2.33092533]
[1742957417342,9.717645,2058.7,2058.6,2.33092533]
[1742957417548,7.689,2058.7,2058.6,2.33092533]
[1742957419436,28.033,2059.1,2058.7,0.7745]
[1742957419639,4.686,2058.8,2058.7,0.7745]
[1742957419843,4.686,2058.8,2058.7,3.10542532]
[1742957425367,7.686,2058.8,2058.6,1e-08]
[1742957425668,0.4686,2058.7,2058.6,1e-08]
[1742957425897,7.686,2058.8,2058.6,1e-08]
[1742957426438,7.686,2058.8,2058.6,2.33092533]
[1742957428161,3.7883,2058.7,2058.6,1e-08]
[1742957428366,0.7883,2058.7,2058.6,1e-08]
[1742957429567,3.7883,2058.7,2058.6,1e-08]
[1742957429865,4.63573,2058.7,2058.6,1e-08]
[1742957431023,5.55725527,2058.7,2058.6,1e-08]
[1742957431227,7.88818059,2058.7,2058.6,1e-08]
[1742957431732,8.03550991,2058.7,2058.6,1e-08]
[1742957435480,0.7883,2058.4,2058.3,0.55]
[1742957435779,54.9826291,2058.4,2058.3,0.55]
[1742957438584,55.22340708,2058.4,2058.3,0.55]
[1742957440482,54.9826291,2058.4,2058.3,0.55]
[1742957440787,4.4826291,2058.4,2058.3,0.55]
[1742957441086,55.79119964,2058.4,2058.3,0.55]
[1742957442876,83.83019964,2058.4,2058.3,0.55]
[1742957446202,77.93746664,2058.4,2058.3,0.55]
[1742957446407,63.59440564,2058.4,2058.3,0.55]
[1742957448403,58.91240564,2058.4,2058.3,0.55]
[1742957448582,63.59040564,2058.4,2058.3,0.55]
[1742957448988,58.91240564,2058.4,2058.3,0.55]
[1742957449306,63.58840564,2058.4,2058.3,0.55]
[1742957449513,58.91240564,2058.4,2058.3,0.55]
[1742957449810,63.58740564,2058.4,2058.3,0.55]
[1742957450398,54.18325564,2058.4,2058.3,0.55]
[1742957450568,60.18265564,2058.4,2058.3,0.55]
[1742957450766,0.7754,2058.2,2058.1,0.02]
[1742957450988,56.73586466,2058.2,2058.1,0.02]
[1742957451475,6.23586466,2058.2,2058.1,0.02]
[1742957451665,6.78586466,2058.2,2058.1,0.02]
[1742957451901,57.28586466,2058.2,2058.1,0.02]
[1742957452093,58.13329466,2058.2,2058.1,0.02]
[1742957452298,58.13329466,2058.2,2057.7,0.55]
[1742957452299,0.7754,2058.0,2057.7,0.55]
[1742957452606,5.33092532,2057.8,2057.7,0.55]
[1742957452816,53.02644732,2057.8,2057.7,0.55]
[1742957453107,53.1531007,2057.8,2057.7,0.55]
[1742957453313,44.63418769,2057.8,2057.7,0.55]
[1742957453474,19.75817869,2057.8,2057.7,0.55]
[1742957453811,0.12665338,2057.8,2057.7,0.55]
[1742957453981,4.682,2057.8,2057.7,1.3534]
[1742957454182,4.79548339,2057.8,2057.7,1.3534]
[1742957455176,4.79948339,2057.8,2057.7,1.3534]